bitfinex/quotes_BTCUSD_20250205
["timestamp","ask_amount","ask_price","bid_price","bid_amount"]
[1738723425774,0.5117168,97731.0,97730.0,1.1477097]
[1738723425982,0.5117168,97731.0,97730.0,1.1437097]
[1738723426384,0.5117168,97731.0,97730.0,1.1477097]
[1738723426598,0.5117168,97731.0,97730.0,1.1467097]
[1738723427390,0.5117168,97731.0,97730.0,1.1477097]
[1738723427940,0.5117168,97731.0,97730.0,1.1467097]
[1738723428116,0.5117168,97731.0,97730.0,1.1876347]
[1738723428322,0.5117168,97731.0,97730.0,1.1886347]
[1738723428842,0.5117168,97731.0,97730.0,1.1846347]
[1738723429081,0.5117168,97731.0,97730.0,1.1886347]
[1738723429447,0.5117168,97731.0,97730.0,1.1876347]
[1738723429648,0.5117168,97731.0,97730.0,1.1836347]
[1738723429861,0.5117168,97731.0,97730.0,1.1846347]
[1738723430063,0.5117168,97731.0,97730.0,1.1886347]
[1738723430268,0.5117168,97731.0,97730.0,1.1876347]
[1738723430589,0.5117168,97731.0,97730.0,1.1926347]
[1738723437167,0.5568168,97731.0,97730.0,1.1926347]
[1738723437370,0.5568168,97731.0,97730.0,1.12054584]
[1738723438372,0.5568168,97731.0,97730.0,1.11254584]
[1738723438586,0.5568168,97731.0,97730.0,0.86416078]
[1738723438833,0.6400168,97731.0,97730.0,0.86416078]
[1738723439428,0.6400168,97731.0,97730.0,0.62836078]
[1738723439647,0.6400168,97731.0,97730.0,0.62936078]
[1738723440020,0.6400168,97731.0,97730.0,0.61916907]
[1738723442225,0.6400168,97731.0,97730.0,0.72155413]
[1738723442226,0.5117168,97731.0,97730.0,0.72155413]
[1738723442427,0.5117168,97731.0,97730.0,0.75274208]
[1738723444407,0.5117168,97731.0,97730.0,0.75274208]
[1738723444607,0.51162564,97731.0,97730.0,0.75274208]
[1738723445451,0.51162564,97731.0,97730.0,1.13754208]
[1738723452954,0.51162564,97731.0,97730.0,1.15788559]
[1738723463275,0.51162564,97731.0,97730.0,1.15810987]
[1738723464526,0.51162564,97731.0,97730.0,1.13305256]
[1738723464828,0.56122564,97731.0,97730.0,1.13776636]
[1738723466596,0.51162564,97731.0,97730.0,1.13776636]
[1738723467971,0.51162564,97731.0,97730.0,1.13676636]
[1738723468368,0.51162564,97731.0,97730.0,1.13376636]
[1738723468779,0.51162564,97731.0,97730.0,1.13776636]
[1738723471635,0.51162564,97731.0,97730.0,1.12527999]
[1738723472427,0.38026955,97731.0,97730.0,2.15983149]
[1738723472629,0.023779,97752.0,97751.0,0.2774738]
[1738723472831,0.023779,97752.0,97751.0,0.77148583]
[1738723473043,0.023779,97752.0,97751.0,0.80272132]
[1738723473241,1e-06,97752.0,97751.0,0.80448583]
[1738723473566,0.450121,97752.0,97751.0,0.8357086]
[1738723473791,0.450121,97752.0,97751.0,0.8267086]
[1738723474004,0.450121,97752.0,97751.0,0.8407086]
[1738723474176,0.450121,97752.0,97751.0,0.8397086]
[1738723474411,0.368281,97752.0,97751.0,0.8297086]
[1738723474726,0.347821,97752.0,97751.0,0.8307086]
[1738723475025,0.347821,97752.0,97751.0,0.8297086]
[1738723475233,0.347821,97752.0,97751.0,0.8357086]
[1738723475374,0.245521,97752.0,97751.0,0.8357086]
[1738723476019,0.245521,97752.0,97751.0,0.8397086]
[1738723476222,0.18230469,97752.0,97751.0,0.84569444]
[1738723476422,0.0001069,97768.0,97751.0,0.84569444]
[1738723476423,8e-07,97768.0,97767.0,0.1604538]
[1738723476598,0.0817,97788.0,97767.0,0.1604538]
[1738723476599,0.0817,97788.0,97787.0,0.2774288]
[1738723476817,0.51131,97788.0,97787.0,0.76461386]
[1738723477203,0.51131,97788.0,97787.0,0.77140619]
[1738723478004,0.51131,97788.0,97787.0,0.77240619]
[1738723478213,0.50631,97788.0,97787.0,0.77240619]
[1738723478887,0.50631,97788.0,97787.0,0.77640619]
[1738723479806,0.50631,97788.0,97787.0,0.78645188]
[1738723480013,0.50631,97788.0,97787.0,0.78145188]
[1738723480405,0.50631,97788.0,97787.0,0.78645188]
[1738723480867,0.50631,97788.0,97787.0,0.78545188]
[1738723481219,0.50631,97788.0,97787.0,0.78645188]
[1738723482141,0.63221,97788.0,97787.0,0.78245188]
[1738723482559,0.63221,97788.0,97787.0,0.78645188]
[1738723483166,0.63221,97788.0,97787.0,0.28522113]
[1738723483560,0.63221,97788.0,97787.0,0.28822113]
[1738723483784,0.63221,97788.0,97787.0,0.28422113]
[1738723483953,0.63221,97788.0,97787.0,0.28522113]
[1738723484266,0.63221,97788.0,97787.0,0.28822113]
[1738723484925,0.50631,97788.0,97787.0,0.39060619]
[1738723485303,0.50631,97788.0,97787.0,0.77140619]
[1738723485663,0.50631,97788.0,97787.0,0.77640619]
[1738723485868,0.50631,97788.0,97787.0,0.77240619]
[1738723486190,0.50631,97788.0,97787.0,0.77540619]
[1738723486407,0.50631,97788.0,97787.0,0.77640619]
[1738723486880,0.5064168,97788.0,97787.0,0.77540619]
[1738723487229,0.5064168,97788.0,97787.0,0.82030619]
[1738723487367,0.5064168,97788.0,97787.0,0.82130619]
[1738723488574,0.5064168,97788.0,97787.0,0.81330619]
[1738723488768,0.5064168,97788.0,97787.0,0.81730619]
[1738723488947,0.5064168,97788.0,97787.0,0.81330619]
[1738723489102,0.5064168,97788.0,97787.0,0.81230619]
[1738723489307,0.5064168,97788.0,97787.0,0.81630619]
[1738723489546,0.5064168,97788.0,97787.0,0.81730619]
[1738723490017,0.5064168,97788.0,97787.0,1.15610619]
[1738723490174,0.4859648,97788.0,97787.0,1.16665079]
[1738723490381,0.4859648,97788.0,97787.0,1.16765079]
[1738723490733,0.13176259,97788.0,97787.0,1.24478055]
[1738723490859,0.09022259,97788.0,97787.0,1.32328055]
[1738723491062,0.09022259,97788.0,97787.0,1.32428055]
[1738723491284,0.06977259,97788.0,97787.0,1.35566092]
[1738723491492,3.9e-07,97798.0,97797.0,0.2974168]
[1738723491689,3.9e-07,97798.0,97797.0,0.46093839]
[1738723492322,0.0001068,97829.0,97824.0,0.2773828]
[1738723492523,0.0001068,97829.0,97824.0,1.10110771]
[1738723492961,0.5263566,97825.0,97824.0,1.10110771]
[1738723493571,0.5263566,97825.0,97824.0,1.10210771]
[1738723494771,0.5263566,97825.0,97824.0,1.10610771]
[1738723495358,0.5263566,97825.0,97824.0,0.72130771]
[1738723495556,0.5263566,97825.0,97824.0,0.76294084]
[1738723496113,0.5263566,97825.0,97824.0,0.75794084]
[1738723496350,0.5263566,97825.0,97824.0,0.75822704]
[1738723496495,0.5263566,97825.0,97824.0,0.76294084]
[1738723496902,0.5263566,97825.0,97824.0,1.14774084]
[1738723497161,0.4241316,97825.0,97824.0,1.17674084]
[1738723497320,0.4036866,97825.0,97824.0,1.17574084]
[1738723498540,0.4036866,97825.0,97824.0,1.17974084]
[1738723498733,0.4037934,97825.0,97824.0,1.17974084]
[1738723499156,0.4037934,97825.0,97824.0,1.18374084]
[1738723499331,0.3629034,97825.0,97824.0,1.18374084]
[1738723499529,0.03149406,97825.0,97824.0,1.18374084]
[1738723499851,0.00015406,97825.0,97824.0,1.29575183]
[1738723500459,8.6e-07,97829.0,97828.0,0.3203778]
[1738723500615,8.6e-07,97836.0,97835.0,0.0047138]
[1738723500837,6.766e-05,97845.0,97844.0,0.2773578]
[1738723501057,6.766e-05,97845.0,97844.0,1.11734286]
[1738723501258,6.766e-05,97845.0,97844.0,1.15924123]
[1738723501893,6.6e-07,97845.0,97844.0,1.16924123]
[1738723502306,0.0491,97868.0,97850.0,0.0147138]
[1738723502307,6.6e-07,97851.0,97850.0,0.0147138]
[1738723502450,0.0491,97880.0,97870.0,0.2773248]
[1738723502659,0.0491,97880.0,97870.0,1.09430986]
[1738723502857,0.0491,97880.0,97870.0,1.13619685]
[1738723503702,0.0001068,97886.0,97870.0,1.14019685]
[1738723503885,0.020289,97900.0,97896.0,0.1272928]
[1738723504221,0.020289,97900.0,97896.0,0.80634279]
[1738723505802,0.020289,97900.0,97896.0,0.81034279]
[1738723506005,0.0666141,97897.0,97896.0,0.77114002]
[1738723506220,0.0666141,97897.0,97896.0,0.64856102]
[1738723506437,0.0666141,97897.0,97896.0,0.01537596]
[1738723506641,0.0666141,97897.0,97896.0,0.01137596]
[1738723506889,0.0666141,97897.0,97896.0,0.0047138]
[1738723507097,0.0666141,97897.0,97896.0,0.01097707]
[1738723507307,0.0666141,97897.0,97896.0,0.0047138]
[1738723507525,0.0666141,97897.0,97893.0,0.122582]
[1738723507526,0.0776,97895.0,97893.0,0.0047138]
[1738723507728,0.0494,97894.0,97893.0,0.0047138]
[1738723507932,0.0494,97892.0,97890.0,0.0047138]
[1738723508124,0.0776,97891.0,97884.0,0.0047138]
[1738723508299,0.0782,97889.0,97885.0,0.0047138]
[1738723508464,0.0456,97888.0,97887.0,0.0047138]
[1738723508665,0.0456,97888.0,97846.0,0.01]
[1738723508666,0.0456,97886.0,97874.0,0.0047138]
[1738723508877,0.1238,97883.0,97874.0,0.0047138]
[1738723509149,0.1238,97882.0,97874.0,0.0047138]
[1738723509353,0.0456,97881.0,97874.0,0.0047138]
[1738723509743,0.1226,97879.0,97874.0,0.0047138]
[1738723509916,0.0782,97880.0,97874.0,0.0077138]
[1738723510122,0.58905,97880.0,97874.0,0.0077138]
[1738723510709,0.58905,97880.0,97874.0,0.003]
[1738723510710,0.122605,97876.0,97874.0,0.003]
[1738723511094,0.122616,97866.0,97865.0,0.0047138]
[1738723511235,0.714266,97866.0,97865.0,0.0047138]
[1738723511646,0.59165,97866.0,97864.0,0.0047138]
[1738723512587,0.0453,97865.0,97864.0,0.0047138]
[1738723512787,0.55615,97865.0,97864.0,0.0047138]
[1738723513536,0.55615,97865.0,97864.0,0.01101239]
[1738723513739,0.55615,97865.0,97864.0,0.0047138]
[1738723513993,0.55615,97865.0,97864.0,0.00630129]
[1738723514147,0.55715,97865.0,97864.0,0.0047138]
[1738723514348,0.55715,97865.0,97864.0,0.0067138]
[1738723514665,0.122626,97859.0,97855.0,0.0047138]
[1738723514867,0.51085,97859.0,97856.0,0.0047138]
[1738723515253,0.03314668,97858.0,97857.0,0.0063016]
[1738723515460,0.163508,97855.0,97843.0,0.0047138]
[1738723515824,0.51085,97855.0,97846.0,0.00630889]
[1738723516024,0.250141,97847.0,97846.0,0.00630889]
[1738723516228,0.63835,97847.0,97838.0,0.00493787]
[1738723516445,0.163524,97845.0,97838.0,0.00493787]
[1738723516640,0.633493,97845.0,97839.0,0.00631396]
[1738723516771,0.049,97839.0,97829.0,0.0047138]
[1738723516981,0.67253933,97839.0,97829.0,0.0047138]
[1738723517183,0.122656,97835.0,97829.0,0.0047138]
[1738723517389,0.51085,97835.0,97829.0,0.0047138]
[1738723517615,0.049,97827.0,97813.0,0.163575]
[1738723517818,0.11268933,97824.0,97813.0,0.0047138]
[1738723518017,0.0792,97823.0,97817.0,0.0047138]
[1738723518218,0.122671,97822.0,97817.0,0.0047138]
[1738723518418,0.51085,97822.0,97817.0,0.0047138]
[1738723519249,0.51085,97822.0,97817.0,0.0057138]
[1738723519624,0.51185,97822.0,97817.0,0.0057138]
[1738723520200,0.51185,97822.0,97818.0,0.00635093]
[1738723521574,0.51085,97822.0,97818.0,0.00635093]
[1738723521776,0.122674,97820.0,97818.0,0.00635093]
[1738723521981,0.633524,97820.0,97818.0,0.00635093]
[1738723522485,0.1233,97800.0,97777.0,0.01065796]
[1738723522695,0.246026,97778.0,97777.0,0.01065796]
[1738723522896,0.756876,97778.0,97777.0,0.01065796]
[1738723523162,0.779876,97778.0,97777.0,0.01065796]
[1738723523312,0.779876,97778.0,97752.0,7.177e-05]
[1738723523313,0.0762,97775.0,97752.0,7.177e-05]
[1738723523537,0.11268933,97762.0,97752.0,7.177e-05]
[1738723523879,0.11268933,97762.0,97756.0,0.0047138]
[1738723523880,0.51085,97762.0,97756.0,0.0047138]
[1738723524078,0.51085,97762.0,97759.0,0.0047138]
[1738723526355,0.51085,97762.0,97761.0,0.0047138]
[1738723527435,0.51085,97762.0,97752.0,7.177e-05]
[1738723527688,0.122758,97753.0,97752.0,7.177e-05]
[1738723527838,0.63485,97753.0,97752.0,7.177e-05]
[1738723529296,0.63485,97753.0,97752.0,0.00207177]
[1738723529517,0.63485,97753.0,97752.0,7.177e-05]
[1738723530316,0.71432213,97753.0,97752.0,7.177e-05]
[1738723530528,0.63485,97753.0,97752.0,7.177e-05]
[1738723531301,0.63585,97753.0,97752.0,7.177e-05]
[1738723531759,0.63485,97753.0,97752.0,0.00107177]
[1738723532228,0.63785,97753.0,97752.0,0.00107177]
[1738723536005,0.63785,97753.0,97752.0,0.00129584]
[1738723536208,0.51385,97753.0,97752.0,0.00600964]
[1738723536608,0.51385,97753.0,97752.0,0.01815949]
[1738723536997,0.51385,97753.0,97752.0,0.14091849]
[1738723537218,0.51085,97753.0,97752.0,0.14091849]
[1738723537493,0.51285,97753.0,97752.0,0.13991849]
[1738723537733,0.51285,97753.0,97752.0,0.12776864]
[1738723537974,0.51085,97753.0,97752.0,0.77710355]
[1738723538392,0.51085,97753.0,97752.0,0.78110355]
[1738723538761,0.51085,97753.0,97752.0,0.77810355]
[1738723538965,0.51085,97753.0,97752.0,0.02015949]
[1738723539305,0.51085,97753.0,97752.0,0.65534455]
[1738723539646,0.51085,97753.0,97752.0,0.73718012]
[1738723540021,0.51085,97753.0,97752.0,0.65534455]
[1738723540353,0.51085,97753.0,97752.0,0.65434455]
[1738723540553,0.51085,97753.0,97752.0,0.68034455]
[1738723540762,0.51085,97753.0,97752.0,0.67834455]
[1738723541322,0.51085,97753.0,97752.0,0.65734455]
[1738723541616,0.51085,97753.0,97752.0,0.16815949]
[1738723541800,0.51085,97753.0,97752.0,0.17115949]
[1738723542043,0.51085,97753.0,97752.0,0.16715949]
[1738723542395,0.51085,97753.0,97752.0,0.02115949]
[1738723542799,0.51085,97753.0,97752.0,0.17115949]
[1738723543015,0.51085,97753.0,97752.0,0.16644569]
[1738723543255,0.51085,97753.0,97752.0,0.17115949]
[1738723543596,0.51085,97753.0,97752.0,0.16715949]
[1738723543803,0.51085,97753.0,97752.0,0.17015949]
[1738723544692,0.51085,97753.0,97752.0,0.16715949]
[1738723545149,0.51085,97753.0,97752.0,0.17015949]
[1738723545346,0.51085,97753.0,97752.0,0.16715949]
[1738723545563,0.51085,97753.0,97752.0,0.17015949]
[1738723546851,0.51085,97753.0,97752.0,0.17115949]
[1738723547473,0.51085,97753.0,97752.0,0.16815949]
[1738723547812,0.51085,97753.0,97752.0,0.17015949]
[1738723548008,0.51085,97753.0,97752.0,0.17115949]
[1738723548680,0.51085,97753.0,97752.0,0.16715949]
[1738723548872,0.51085,97753.0,97752.0,0.17015949]
[1738723550169,0.51085,97753.0,97752.0,0.17115949]
[1738723550570,0.51085,97753.0,97752.0,0.16715949]
[1738723550770,0.51085,97753.0,97752.0,0.01715949]
[1738723550976,0.51085,97753.0,97752.0,0.27254455]
[1738723551475,0.51085,97753.0,97752.0,0.27054455]
[1738723552050,0.51085,97753.0,97752.0,0.26954455]
[1738723552405,0.51085,97753.0,97752.0,0.30566196]
[1738723552618,0.51085,97753.0,97752.0,0.28266196]
[1738723553373,0.51085,97753.0,97752.0,0.28366196]
[1738723553779,0.51085,97753.0,97752.0,0.30266196]
[1738723554210,0.51085,97753.0,97752.0,0.69146196]
[1738723556508,0.51085,97753.0,97752.0,0.66846196]
[1738723557120,0.51085,97753.0,97752.0,0.69146196]
[1738723557929,0.51085,97753.0,97752.0,0.81766196]
[1738723558772,0.40855,97753.0,97752.0,0.82766196]
[1738723558975,0.35086925,97753.0,97752.0,0.82766196]
[1738723559290,0.35086925,97753.0,97752.0,0.85806007]
[1738723559452,0.30994925,97753.0,97752.0,0.85409622]
[1738723559669,0.24856925,97753.0,97752.0,0.85409622]
[1738723559866,0.17624925,97753.0,97752.0,0.86309622]
[1738723560076,0.01436918,97753.0,97752.0,3.00461722]
[1738723560272,0.0001068,97787.0,97752.0,3.00461722]
[1738723560273,0.0001068,97787.0,97786.0,0.2774298]
[1738723560493,0.0001068,97787.0,97786.0,0.78761486]
[1738723560494,8e-07,97787.0,97786.0,0.78761486]
[1738723560691,8e-07,97787.0,97786.0,0.81601153]
[1738723561252,8e-07,97787.0,97786.0,0.84639108]
[1738723561677,8e-07,97787.0,97786.0,0.82693153]
[1738723561872,8e-07,97787.0,97786.0,0.82393153]
[1738723562095,8e-07,97787.0,97786.0,0.81393153]
[1738723562300,8e-07,97787.0,97786.0,0.83424064]
[1738723562500,0.08916702,97835.0,97813.0,0.1273948]
[1738723562501,0.16873743,97820.0,97813.0,0.1273948]
[1738723562703,0.0499,97816.0,97793.0,0.0047138]
[1738723562913,0.0499,97816.0,97814.0,0.00913995]
[1738723563063,0.0499,97816.0,97813.0,0.163576]
[1738723563267,0.0499,97816.0,97815.0,0.0047138]
[1738723563682,0.0499,97816.0,97815.0,0.26623166]
[1738723564389,0.0499,97816.0,97815.0,0.28524958]
[1738723565263,0.0499,97816.0,97815.0,0.28724958]
[1738723565460,0.1216,97829.0,97828.0,0.1273778]
[1738723565944,0.1216,97829.0,97828.0,0.13650461]
[1738723566347,0.6327,97829.0,97828.0,0.13650461]
[1738723566895,0.6327,97829.0,97828.0,0.15552253]
[1738723567450,0.6327,97829.0,97828.0,0.15752253]
[1738723568106,0.6327,97829.0,97828.0,0.15952253]
[1738723569701,0.5111,97829.0,97828.0,0.41190759]
[1738723570151,0.5111,97829.0,97828.0,0.79670759]
[1738723570356,0.5111,97829.0,97828.0,0.81970759]
[1738723570489,0.5111,97829.0,97828.0,0.85006571]
[1738723570930,0.490656,97829.0,97828.0,0.84606571]
[1738723571264,0.429324,97829.0,97828.0,0.84906571]
[1738723571465,0.429324,97829.0,97828.0,0.84606571]
[1738723571808,0.429324,97829.0,97828.0,0.8517226]
[1738723572018,0.429324,97829.0,97828.0,0.81835191]
[1738723572223,0.429324,97829.0,97828.0,0.28826571]
[1738723572470,0.429324,97829.0,97828.0,0.05850285]
[1738723572698,0.429324,97829.0,97828.0,0.06321665]
[1738723572872,0.429324,97829.0,97828.0,0.21321665]
[1738723573046,0.429324,97829.0,97828.0,0.31560171]
[1738723573244,0.429324,97829.0,97828.0,0.13524359]
[1738723573651,0.429324,97829.0,97828.0,0.13824359]
[1738723573862,0.429324,97829.0,97828.0,0.02814473]
[1738723574089,0.429324,97829.0,97828.0,0.06321665]
[1738723574319,0.429324,97829.0,97828.0,0.06621665]
[1738723574462,0.429324,97829.0,97828.0,0.06321665]
[1738723574893,0.429324,97829.0,97828.0,0.16860171]
[1738723575098,0.429324,97829.0,97828.0,0.16088791]
[1738723575299,0.429324,97829.0,97828.0,0.06621665]
[1738723576016,0.429324,97829.0,97828.0,0.31860171]
[1738723576623,0.429324,97829.0,97828.0,0.31560171]
[1738723577009,0.429324,97829.0,97828.0,0.34160171]
[1738723577265,0.429324,97829.0,97828.0,0.3487381]
[1738723577463,0.429324,97829.0,97828.0,0.3517381]
[1738723577659,0.429324,97829.0,97828.0,0.7365381]
[1738723577893,0.429324,97829.0,97828.0,0.7335381]
[1738723578096,0.388436,97829.0,97828.0,0.7365381]
[1738723578234,0.30666,97829.0,97828.0,1.0763381]
[1738723578435,0.265772,97829.0,97828.0,1.0733381]
[1738723578718,0.1124247,97829.0,97828.0,1.0733381]
[1738723578917,0.07019483,97829.0,97828.0,1.1590381]
[1738723579090,0.0453,97874.0,97853.0,0.2773458]
[1738723579238,0.0453,97874.0,97853.0,0.78753086]
[1738723579437,0.0453,97874.0,97853.0,0.79658396]
[1738723580924,0.0453,97874.0,97853.0,0.79958396]
[1738723581293,0.0453,97874.0,97853.0,0.89379442]
[1738723581720,0.0453,97874.0,97873.0,0.2773208]
[1738723581895,0.0453,97874.0,97873.0,0.37970586]
[1738723582337,0.0001068,97885.0,97884.0,0.2773078]
[1738723582540,0.0001068,97885.0,97884.0,0.37969286]
[1738723582750,0.0001068,97885.0,97884.0,0.38870492]
[1738723583117,0.0001068,97885.0,97884.0,0.47596963]
[1738723584438,0.0001068,97885.0,97884.0,0.47896963]
[1738723585279,0.0001068,97885.0,97884.0,0.88376963]
[1738723585478,0.0001068,97885.0,97884.0,0.88676963]
[1738723586039,0.0492,97939.0,97913.0,0.0047138]
[1738723586159,0.0492,97939.0,97913.0,0.63745586]
[1738723586362,0.0492,97939.0,97903.0,0.01]
[1738723586363,0.01,97905.0,97884.0,0.09927677]
[1738723586581,0.01,97905.0,97888.0,0.122588]
[1738723586582,0.01,97889.0,97888.0,0.122588]
[1738723587184,0.01,97890.0,97889.0,0.15]
[1738723587485,0.01,97899.0,97898.0,0.122576]
[1738723587682,0.01,97899.0,97898.0,0.22496106]
[1738723588314,0.01,97899.0,97898.0,0.4243371]
[1738723588513,0.0804,97905.0,97904.0,0.272569]
[1738723588831,0.01,97909.0,97908.0,0.122564]
[1738723589041,0.01,97909.0,97908.0,0.22494906]
[1738723589256,0.0592,97911.0,97910.0,0.122561]
[1738723589452,0.0592,97911.0,97910.0,0.22494606]
[1738723589591,0.0492,97911.0,97910.0,0.22494606]
[1738723589793,0.0592,97911.0,97910.0,0.26280006]
[1738723591248,0.0001068,97914.0,97913.0,0.122557]
[1738723591454,0.0001068,97914.0,97913.0,0.22494206]
[1738723591658,0.0001068,97914.0,97913.0,0.00893727]
[1738723591659,0.0101068,97914.0,97913.0,0.00893727]
[1738723591902,0.0101068,97914.0,97910.0,0.037854]
[1738723592080,0.0101068,97914.0,97913.0,0.15893727]
[1738723592256,0.0101068,97914.0,97913.0,0.187854]
[1738723592469,0.0101068,97914.0,97913.0,0.19679127]
[1738723592674,0.0101068,97914.0,97913.0,0.04679127]
[1738723592876,0.0101068,97914.0,97913.0,0.037854]
[1738723593400,0.0101068,97914.0,97884.0,0.08170477]
[1738723593401,0.132569,97904.0,97903.0,0.03026502]
[1738723593739,0.21733743,97913.0,97903.0,0.14159505]
[1738723593936,0.0586,97913.0,97904.0,0.10238506]
[1738723594137,0.0101068,97914.0,97913.0,0.15]
[1738723594383,0.0101068,97914.0,97913.0,0.10338506]
[1738723594560,0.0101068,97914.0,97913.0,0.11133142]
[1738723595392,0.0001068,97914.0,97913.0,0.66913142]
[1738723595597,0.0001068,97914.0,97913.0,0.67213142]
[1738723596729,0.0001068,97914.0,97913.0,0.66913142]
[1738723597237,0.0001068,97914.0,97913.0,0.67213142]
[1738723597419,0.0001068,97914.0,97913.0,0.66913142]
[1738723597620,0.0001068,97914.0,97913.0,0.67213142]
[1738723597783,0.0001068,97914.0,97913.0,0.66913142]
[1738723598186,0.0001068,97914.0,97913.0,0.67213142]
[1738723599730,0.0001068,97914.0,97913.0,0.26133142]
[1738723599929,0.0001068,97914.0,97913.0,0.64613142]
[1738723600129,0.0001068,97914.0,97913.0,0.64913142]
[1738723600364,0.0001068,97914.0,97913.0,0.26133142]
[1738723600727,0.0001068,97914.0,97913.0,0.26433142]
[1738723600954,0.0001068,97914.0,97913.0,0.26133142]
[1738723601151,0.0001068,97914.0,97913.0,0.11133142]
[1738723601152,0.0101068,97914.0,97913.0,0.11133142]
[1738723601353,0.0895068,97914.0,97913.0,0.11433142]
[1738723602778,0.1359068,97914.0,97913.0,0.01194636]
[1738723603058,0.1972968,97914.0,97913.0,0.01494636]
[1738723603193,0.1359068,97914.0,97913.0,0.00894636]
[1738723603622,0.1359068,97914.0,97913.0,0.003]
[1738723603797,0.1359068,97914.0,97913.0,0.00891973]
[1738723604001,0.01,97904.0,97903.0,0.00022407]
[1738723604385,0.132569,97904.0,97903.0,0.00914985]
[1738723604583,0.132569,97904.0,97903.0,0.00022407]
[1738723604714,0.212969,97904.0,97903.0,0.00022407]
[1738723606029,0.723679,97904.0,97903.0,0.00022407]
[1738723606425,0.60111,97904.0,97903.0,0.00322407]
[1738723606771,0.60111,97904.0,97903.0,0.00022407]
[1738723606977,0.60111,97904.0,97903.0,0.10260913]
[1738723607192,0.52071,97904.0,97903.0,0.2615764]
[1738723607679,0.52071,97904.0,97903.0,0.2645764]
[1738723607981,0.52071,97904.0,97903.0,0.2615764]
[1738723608122,0.51071,97904.0,97903.0,0.2615764]
[1738723608327,0.52071,97904.0,97903.0,0.2615764]
[1738723609322,0.52071,97904.0,97903.0,0.2645764]
[1738723609671,0.52071,97904.0,97903.0,0.2615764]
[1738723609866,0.52071,97904.0,97903.0,0.2645764]
[1738723610868,0.52071,97904.0,97903.0,0.16219134]
[1738723611608,0.52071,97904.0,97903.0,0.01219134]
[1738723611924,0.52071,97904.0,97903.0,0.00322407]
[1738723612122,0.643279,97904.0,97903.0,0.00322407]
[1738723612324,0.82425,97904.0,97903.0,0.00022407]
[1738723612823,0.82425,97904.0,97903.0,0.00322407]
[1738723612824,0.772179,97904.0,97903.0,0.00322407]
[1738723613541,0.773179,97904.0,97903.0,0.00022407]
[1738723613942,0.772179,97904.0,97903.0,0.00022407]
[1738723614437,0.774179,97904.0,97903.0,0.00022407]
[1738723615263,0.87656406,97904.0,97903.0,0.00022407]
[1738723615493,0.97905878,97904.0,97903.0,0.00022407]
[1738723615696,0.97905878,97904.0,97873.0,0.15]
[1738723615697,0.092,97875.0,97873.0,0.15]
[1738723615898,0.60271,97875.0,97873.0,0.15]
[1738723616203,0.01,97874.0,97873.0,0.15]
[1738723616330,0.52071,97874.0,97873.0,0.37499206]
[1738723616552,0.52071,97874.0,97873.0,0.22499206]
[1738723618427,0.52071,97874.0,97873.0,0.10238506]
[1738723618883,0.52071,97874.0,97873.0,0.10538506]
[1738723619161,0.52071,97874.0,97873.0,0.10238506]
[1738723619362,0.52071,97874.0,97873.0,0.10538506]
[1738723620269,0.52071,97874.0,97873.0,0.003]
[1738723620419,0.56961,97874.0,97873.0,0.003]
[1738723620584,0.6388315,97874.0,97873.0,0.003]
[1738723620783,0.65041,97874.0,97873.0,0.003]
[1738723621360,0.180942,97845.0,97828.0,0.00022407]
[1738723621553,0.56901,97845.0,97828.0,0.00022407]
[1738723621789,0.01,97835.0,97834.0,0.122656]
[1738723621992,0.01,97835.0,97828.0,0.00022407]
[1738723621993,0.01,97829.0,97828.0,0.00022407]
[1738723622159,0.52071,97829.0,97828.0,0.00022407]
[1738723622370,0.52071,97829.0,97828.0,0.01087839]
[1738723623229,0.52071,97829.0,97828.0,0.01387839]
[1738723623633,0.7122471,97829.0,97828.0,0.01387839]
[1738723623995,0.64791,97829.0,97828.0,0.01387839]
[1738723625398,0.64791,97829.0,97828.0,0.01087839]
[1738723626061,0.64791,97829.0,97828.0,0.01387839]
[1738723626509,0.64791,97829.0,97828.0,0.01087839]
[1738723626932,0.63991,97829.0,97828.0,0.01087839]
[1738723627136,0.64991,97829.0,97828.0,0.01087839]
[1738723627510,0.65291,97829.0,97828.0,0.01087839]
[1738723627999,0.65091,97829.0,97828.0,0.01087839]
[1738723628595,0.65191,97829.0,97828.0,0.01087839]
[1738723628796,0.64891,97829.0,97828.0,0.01087839]
[1738723629297,0.64791,97829.0,97828.0,0.01087839]
[1738723629435,0.64891,97829.0,97828.0,0.01087839]
[1738723629993,0.56911,97829.0,97828.0,0.01087839]
[1738723630161,0.57011,97829.0,97828.0,0.01087839]
[1738723630491,0.56911,97829.0,97828.0,0.13354239]
[1738723630821,0.56911,97829.0,97828.0,0.02054412]
[1738723631476,0.57011,97829.0,97828.0,0.01087839]
[1738723631861,0.56911,97829.0,97828.0,0.01087839]
[1738723632320,0.57011,97829.0,97828.0,0.01087839]
[1738723632662,0.56911,97829.0,97828.0,0.01087839]
[1738723633080,0.6719958,97829.0,97828.0,0.01087839]
[1738723633525,0.57011,97829.0,97828.0,0.01087839]
[1738723633720,0.75519506,97829.0,97828.0,0.01087839]
[1738723634131,0.76518531,97829.0,97828.0,0.01087839]
[1738723634347,0.65181,97829.0,97828.0,0.00022407]
[1738723634751,0.65281,97829.0,97828.0,0.00022407]
[1738723635105,0.65181,97829.0,97828.0,0.00022407]
[1738723635508,0.65281,97829.0,97828.0,0.00989533]
[1738723635710,0.65481,97829.0,97828.0,0.00989533]
[1738723636200,0.65381,97829.0,97828.0,0.00989533]
[1738723636399,0.52071,97829.0,97828.0,0.00989533]
[1738723636597,0.52071,97829.0,97828.0,0.00022407]
[1738723636837,0.52171,97829.0,97828.0,0.00989533]
[1738723637614,0.52271,97829.0,97828.0,0.00989533]
[1738723638226,0.52171,97829.0,97828.0,0.00989533]
[1738723638379,0.51171,97829.0,97828.0,0.00989533]
[1738723638579,0.52171,97829.0,97828.0,0.00989533]
[1738723638803,0.52071,97829.0,97828.0,0.00989533]
[1738723639132,0.52171,97829.0,97828.0,0.00989533]
[1738723639933,0.52171,97829.0,97828.0,0.01289533]
[1738723640306,0.59731,97829.0,97828.0,0.00322407]
[1738723640512,0.69880472,97829.0,97828.0,0.00322407]
[1738723640787,0.69880472,97829.0,97828.0,0.00022407]
[1738723641244,0.59631,97829.0,97828.0,0.00022407]
[1738723641413,0.64131,97829.0,97828.0,0.00022407]
[1738723641581,0.64231,97829.0,97828.0,0.00022407]
[1738723642176,0.64131,97829.0,97828.0,0.00322407]
[1738723642508,0.64331,97829.0,97828.0,0.00022407]